Cogmind - Beta 10.2 @@@ ROGUE MODE // 2021.10.09 @ 15:41:26 Player: zapruda Result: Destroyed by as-76965 with Assembled Heavy Rifle Performance ------------- Evolutions (0) 0 Regions Visited (2) 400 Robots Destroyed (2) 10 Value Destroyed (54) 54 Prototype IDs (0) 0 Alien Tech Used (0) 0 Bonus (-51) -51 TOTAL SCORE: 413 Bonus ------- Friendly Fire -51 Cogmind --------- Core Integrity 0/250 Matter 158/300 Energy 140/140 System Corruption 0% Temperature Cool (40) Movement Hovering (131) Ox1 Location -10/Mines Parts ------- > --- POWER (1) -------- Light Deuterium Engine > --- PROPULSION (2) --- Hover Unit Combat Airjet > --- UTILITY (2) ------ Large Storage Unit > --- WEAPON (2) ------- Bore Cannon > --- INVENTORY (10) --- Light Ion Engine Light Treads Light Treads Medium Matter Pod (4) High-capacity Matter Pod (0) Targeting Computer Light Armor Plating Medium Laser Peak State ------------ > --- POWER ------------ Light Deuterium Engine > --- PROPULSION ------- Hover Unit Combat Airjet > --- UTILITY ---------- Large Storage Unit > --- WEAPON ----------- Bore Cannon > --- INVENTORY -------- Light Ion Engine Light Treads Light Treads Medium Matter Pod High-capacity Matter Pod Targeting Computer Light Armor Plating Medium Laser [Rating: 15] Favorites ----------- Power Light Ion Engine Engine Light Ion Engine Propulsion Aluminum Leg Leg Aluminum Leg Hover Unit Hover Unit Utility Large Storage Unit Device Sensor Array Storage Large Storage Unit Weapon Assault Rifle Energy Gun EM Pulse Gun Ballistic Gun Assault Rifle Ballistic Cannon Bore Cannon Launcher Grenade Launcher Build | -11 -10 -10 ------- Run | Scr Mat Min Slots Evolved . | . . . Power . | . . . Propulsion . | . . . Utility . | . . . Weapon . | . . . Parts Attached 13 | 1 7 5 Power 2 | . 1 1 Engine 2 | . 1 1 Core . | . . . Reactor . | . . . Propulsion 4 | . 2 2 Treads . | . . . Leg 2 | . 2 . Wheel . | . . . Hover 2 | . . 2 Flight . | . . . Utility 2 | . 2 . Device 1 | . 1 . Storage 1 | . 1 . Processor . | . . . Hackware . | . . . Protection . | . . . Artifact . | . . . Weapon 5 | 1 2 2 Energy Gun 1 | . 1 . Energy Cannon . | . . . Ballistic Gun 2 | 1 1 . Ballistic Cannon 1 | . . 1 Launcher 1 | . . 1 Special Weapon . | . . . Impact Weapon . | . . . Slashing Weapon . | . . . Piercing Weapon . | . . . Special Melee Weapon . | . . . Unidentified Prototypes . | . . . Parts Lost 7 | . . 7 Power 1 | . . 1 Propulsion 2 | . . 2 Utility 1 | . . 1 Weapon 3 | . . 3 Highest Loss Streak 5 | . . 5 Average Slot Usage (%) 82 | . 86 73 Engine 10 | . 12 5 Leg 23 | . 25 19 Hover 1 | . . 4 Device 5 | . 3 9 Storage 16 | . 18 14 Energy Gun 9 | . 12 2 Ballistic Gun 11 | . 12 9 Launcher 1 | . . 4 Naked Turns . | . . . Heaviest Build 30 | 11 27 30 Greatest Support 28 | 20 20 28 Greatest Overweight (x) 6 | . 6 4 Average Overweight (x) . | . . 1 Largest Inventory Capacity 12 | 6 12 10 Average Capacity 9 | 6 8 10 Most Carried 12 | 6 12 10 Average Carried 7 | 6 7 8 Final Capacity 10 | 6 10 10 Final Carried 9 | 6 9 8 Class Distribution -------------------- 100% | Mutant Dominant Class ---------------- Mutant | -10/Materials Mutant | -10/Mines Resources | -11 -10 -10 ----------- Run | Scr Mat Min Matter Collected 284 | 210 . 74 Remotely . | . . . Salvage Created 48 | . . 48 Parts 4 | . . 4 Haulers Intercepted . | . . . Recyclers Shooed . | . . . Parts Field Recycled . | . . . Retrieved Matter . | . . . Parts Self-Destructed . | . . . Prevented . | . . . Kills | -11 -10 -10 ------- Run | Scr Mat Min Combat Hostiles Destroyed 6 | . . 6 Guns 1 | . . 1 Cannons 1 | . . 1 AOE 4 | . . 4 Classes Destroyed 3 | . . 3 Worker 1 | . . 1 Demolisher 1 | . . 1 Assembled 5 | . . 5 Best Kill Streak 6 | . . 6 Combat Bots Only 5 | . . 5 Max Kills in Single Turn 3 | . . 3 Gunslinging . | . . . Exploded 2 | . . 2 Melee . | . . . Uniques/NPCs Destroyed . | . . . Combat | -11 -10 -10 -------- Run | Scr Mat Min Damage Taken 780 | . . 780 Core 253 | . . 253 Absorbed by Shields . | . . . Core Remaining (%) 100 | 100 . . Volleys Fired 17 | . . 17 Largest 2 | . . 2 Hottest 60 | . . 60 Shots Fired 27 | . . 27 Gun 17 | . . 17 Cannon 4 | . . 4 Launcher 6 | . . 6 Special . | . . . Kinetic 17 | . . 17 Thermal . | . . . Explosive 6 | . . 6 Electromagnetic 4 | . . 4 Robot Hit Streak 5 | . . 5 Robot Miss Streak 2 | . . 2 Penetration Max . | . . . Secondary Targets . | . . . Shots Hit Robots 17 | . . 17 Core Hits 13 | . . 13 Critical Hits 3 | . . 3 Critical Kills 1 | . . 1 Critical Parts Destroyed 2 | . . 2 Melee Attacks . | . . . Impact . | . . . Slashing . | . . . Piercing . | . . . Sneak Attacks . | . . . Combat Hostiles . | . . . Follow-up Attacks . | . . . Damage Inflicted 546 | . . 546 Guns 126 | . . 126 Cannons 71 | . . 71 Explosions 349 | . . 349 Melee . | . . . Ramming . | . . . Kinetic 152 | . . 152 Thermal . | . . . Explosive 349 | . . 349 Electromagnetic 45 | . . 45 Impact . | . . . Slashing . | . . . Piercing . | . . . Highest Corruption . | . . . Average Corruption . | . . . Corruption Purged . | . . . Overload Shots . | . . . Overflow Damage 1 | . . 1 Projectiles . | . . . Explosions 1 | . . 1 Melee . | . . . Knockbacks 2 | . . 2 Impact . | . . . Kinetic 2 | . . 2 Secondary . | . . . Self-Inflicted Damage . | . . . Shots . | . . . Rammed . | . . . Targets Rammed . | . . . Kicked . | . . . Crushed . | . . . Highest Temperature 40 | . . 40 Average Temperature 17 | . . 17 Received Heat Transfer 100 | . . 100 Siege Activations . | . . . Robots Corrupted . | . . . Combat Hostiles . | . . . Parts Fried . | . . . Impact Corruptions . | . . . Robots Melted . | . . . Combat Hostiles . | . . . Parts Melted . | . . . Heat Transferred . | . . . Parts Sabotaged . | . . . Parts Stolen . | . . . Parts Stripped . | . . . Power Chain Reactions . | . . . Missiles Intercepted . | . . . Alert | -11 -10 -10 ------- Run | Scr Mat Min Peak Influence 20 | . . 20 Initial . | . . . Average 3 | . . 11 Maximum Alert Level . | . . . Low Security (%) 100 | 100 100 100 Level 1 . | . . . Level 2 . | . . . Level 3 . | . . . Level 4 . | . . . Level 5 . | . . . High Security . | . . . Max Security . | . . . Squads Dispatched . | . . . Investigation . | . . . Extermination . | . . . Reinforcement . | . . . Assault . | . . . Garrison . | . . . Intercept . | . . . Construction Impeded . | . . . Haulers Reinforced . | . . . Stealth | -11 -10 -10 --------- Run | Scr Mat Min Distress Signals . | . . . Communications Jammed . | . . . Distress Signals . | . . . Times Spotted 14 | . . 14 Peak Tracking Total 7 | . . 7 Tactical Retreats 2 | . . 2 Traps | -11 -10 -10 ------- Run | Scr Mat Min Traps Triggered 5 | . 5 . Indirectly . | . . . Trap Hack Attempts . | . . . Triggered . | . . . Disarmed . | . . . Reprogrammed . | . . . Reused . | . . . Traps Extracted . | . . . Installed . | . . . Triggered . | . . . Machines | -11 -10 -10 ---------- Run | Scr Mat Min Machines Disabled . | . . . Max in Single Turn . | . . . Machines Sabotaged . | . . . Garrisons Compromised . | . . . Overloaded Fab Kills . | . . . Fab Network Shutdowns . | . . . Hacking | -11 -10 -10 --------- Run | Scr Mat Min Machines Accessed 2 | . 2 . Terminals . | . . . Fabricators . | . . . Repair Stations . | . . . Recycling Units 2 | . 2 . Scanalyzers . | . . . Garrison Access . | . . . Total Hacks 3 | . 3 . Successful 3 | . 3 . Failed . | . . . Catastrophic . | . . . Database Lockouts . | . . . Manual . | . . . Terminals . | . . . Fabricators . | . . . Repair Stations . | . . . Recycling Units 3 | . 3 . Scanalyzers . | . . . Garrison Access . | . . . Terminal Hacks . | . . . Fabricator Hacks . | . . . Repair Station Hacks . | . . . Recycling Unit Hacks 3 | . 3 . Report Inventory 2 | . 2 . Retrieve Components 1 | . 1 . Scanalyzer . | . . . Garrison Access Hacks . | . . . Unauthorized Hacks . | . . . Terminals . | . . . Fabricators . | . . . Repair Stations . | . . . Recycling Units . | . . . Scanalyzers . | . . . Garrison Access . | . . . Data Cores Recovered . | . . . Used . | . . . Hacking Detections . | . . . Full Trace Events . | . . . Feedback Events . | . . . Feedback Blocked . | . . . Robot Schematics Acquired . | . . . Robots Built . | . . . Matter . | . . . Time . | . . . Total Robot Build Rating . | . . . Part Schematics Acquired . | . . . Parts Built . | . . . Matter . | . . . Time . | . . . Total Part Build Rating . | . . . Parts Repaired . | . . . Time . | . . . Parts Recycled . | . . . Recycled Matter . | . . . Retrieved Matter . | . . . Retrieved Components 3 | . 3 . Parts Scanalyzed . | . . . Part Schematics Acquired . | . . . Parts Damaged . | . . . Bothacking | -11 -10 -10 ------------ Run | Scr Mat Min Used RIF Installer . | . . . Robots Hacked . | . . . Non-combat . | . . . Combat . | . . . Robot Hacks Applied . | . . . Relay Couplers Released . | . . . Robots Rewired . | . . . Allies Hacked . | . . . Hacks Repelled . | . . . Allies | -11 -10 -10 -------- Run | Scr Mat Min Total Allies . | . . . Largest Group . | . . . Highest-Rated Group . | . . . Highest-Rated Ally . | . . . Total Orders . | . . . Ally Attacks . | . . . Total Damage . | . . . Kills . | . . . Allies Corrupted . | . . . Allies Melted . | . . . Intel | -11 -10 -10 ------- Run | Scr Mat Min Robot Analysis Total . | . . . Derelict Logs Recovered . | . . . Drone Launches . | . . . Drone Recoveries . | . . . Exploration | -11 -10 -10 ------------- Run | Scr Mat Min Turns Passed 312 | 9 208 95 Spaces Moved 172 | 7 139 26 Core 2 | . 2 . Treads . | . . . Legs 166 | 7 137 22 Wheels . | . . . Hover 4 | . . 4 Flight . | . . . Fastest Speed 120 | 120 120 120 Average Speed 138 | 120 136 153 Slowest Speed 350 | 120 350 300 Overloaded Moves . | . . . Propulsion Burnouts . | . . . Robots Hopped . | . . . Cave-ins Triggered . | . . . Exploration Rate (%) 9 | 2 17 9 Regions Visited 2 Branch Regions 1 Pre-discovered Areas . | . . . Known Exits Taken . | . . . Unknown Exits Taken 2 | 1 1 . Scrap Searched . | . . . Spaces Dug . | . . . Terrain Destroyed 45 | . . 45 Melee . | . . . Projectile 1 | . . 1 AOE 44 | . . 44 Terrain Rammed . | . . . Walls Destroyed . | . . . Machines Disabled . | . . . Actions | -11 -10 -10 --------- Run | Scr Mat Min Total 218 | 7 157 54 Wait . | . . . Move 170 | 6 138 26 Hop . | . . . Pick Up 15 | . 10 5 Fast Attach 1 | . 1 . Attach 10 | . 5 5 Detach . | . . . Swap 2 | 1 1 . Drop 3 | . 2 1 Fire 17 | . . 17 Melee . | . . . Ram . | . . . Kick . | . . . Crush . | . . . Escape Stasis . | . . . Rewire . | . . . Trap . | . . . Miscellaneous . | . . . Route ------- -11/Scrapyard -10/Materials -10/Mines History --------- Turn | Location | Event 1 | -11/Scrapyard | Discovered new exit (range 2) 10 | -11/Scrapyard | Entered Materials 85 | -10/Materials | Discovered new exit (range 7) 218 | -10/Materials | Entered Mines 219 | -10/Mines | Assembled infested the area 224 | -10/Mines | Assisted by a Guerilla fighting off Assembled 271 | -10/Mines | Met a Derelict bent on vengeance 290 | -10/Mines | Core integrity fell below 50% 292 | -10/Mines | Core integrity fell below 20% 313 | -10/Mines | Destroyed by as-76965 with Assembled Heavy Rifle Last Messages --------------- 00289_ R-06 Scavenger destroyed. 00289_ as-96340 sneak attacks. 00291_ D-53 Grenadier suffers critical hit. 00291_ D-53 Grenadier destroyed. 00293_ D-53 Grenadier suffers critical hit. 00293_ Destroyed Shock Absorption System. 00293_ D-53 Grenadier destroyed. 00294_ The unstable cave ceiling collapses. 00297_ U-05 Engineer destroyed. 00299_ Acquired Lgt. Deuterium Engine. 00303_ Acquired Cmb. Airjet. 00304_ The unstable cave ceiling collapses. 00307_ K-01 Serf collects debris. 00308_ The unstable cave ceiling collapses. 00309_ HV Slug penetrates as-96340. 00309_ as-96340 knocked back. 00309_ HV Slug penetrates as-96340. 00311_ as-96340 suffers critical hit. 00311_ Destroyed Asb. Hover Unit. 00311_ as-96340 knocked back. Map ----- +----------------------------------------------------+ | | | | | | | | | | | | | | | | | | | | | | | | | | | | | | | | | | | | | | | | | | | ?????????????????????????????????????????????????? | | ???????????????????######????###?????????????????? | | ?????????????????### # #### ##????????????????? | | ????????????????## ##???????????????? | | ????????????????# a @ #???????????????? | | ????????????????## # #??????????????? | | ?????????????????# k #?? k #??????????? | | ????????????????# ##???? #??????????? | | ??????????????### % # ##?????? #?????????? | | ?????????# #### ##???????? ??????????? | | ?????????# * !%!! # ##??????????? ??????????? | | ?????????##"; | #####????????????????????????? | | ??????????### = % #????????????????????????????? | | ???????????# # %! ##????????????????????????????? | | ???????? ## #?????????????????????????????? | | ??????# # ?????????????????????????????? | | ?????# ##????????????????????????????? | | ???? #?????????????????????????????? | | ??? " # ##?????????????????????????????? | | ????# # # #??????????????????????????????? | | ????# ##??????????????????????????????? | | ????## ### ##????????????????????????????????? | | ?????"" #??### ??????????????????????????????????? | | ??????# ?????##??????????????????????????????????? | | ?????????????????????????????????????????????????? | | ?????????????????????????????????????????????????? | | ?????????????????????????????????????????????????? | | ?????????????????????????????????????????????????? | | ?????????????????????????????????????????????????? | +----------------------------------------------------+ Best States ------------- Heat Dissipation 25 Energy Generation 14 Energy Capacity 140 Matter Stores 300 Matter Capacity 300 Sight Range 16 Robot Scan Range 10 Terrain Scan Density 10 Evasion (%) 40 Item Schematics ----------------- None Robot Schematics ------------------ None Fabricated ------------ Nothing Alien Tech Used ----------------- None Achievements -------------- None Challenges ------------ None Game ------ Seed GreatVariableCanceller Manual? 0 Play Time 00:05:13 Cumulative 50.9 hours Start 2021.10.09 @ 15:38:01 End 2021.10.09 @ 15:41:26 Sessions 1 Manual Loads 0 Difficulty Rogue Special Mode None Game No. 78 Rogue 78 Adventurer 0 Explorer 0 Win Type - Total 0 Types 0/0/0/0/0/0/0/0/0 Lore% 28 Gallery% 46 Achievement% 30 Wizard Run 0 Options --------- ASCII 0 Keyboard 0 Movement Mouse Keybinds 0 Fullscreen 1 Font 16/Cog Map View 76x50 Tactical HUD 1 Map Filters NONE Filters NONE Steam 1 RUN: 62a7caac-6bae-4e12-a038-7d2a91ae17fc